bitfinex/quotes_ETHUSD_20260213
["timestamp","ask_amount","ask_price","bid_price","bid_amount"]
[1771023464693,2.90344554,2052.3,2051.8,0.001]
[1771023464902,2.90344554,2052.2,2051.8,0.001]
[1771023465198,9.39682873,2052.4,2051.8,0.001]
[1771023467195,0.47594179,2052.3,2051.8,0.001]
[1771023469322,1.69410885,2052.3,2051.8,0.001]
[1771023469530,0.47594179,2052.2,2051.8,0.001]
[1771023472301,0.47594179,2052.1,2051.8,0.001]
[1771023474423,1.69423195,2052.1,2051.8,0.001]
[1771023474732,0.47594179,2052.1,2051.8,0.001]
[1771023475628,0.47594179,2052.0,2051.8,0.001]
[1771023477006,2.90398811,2051.9,2051.8,0.001]
[1771023483032,4.59929831,2051.9,2051.6,0.001]
[1771023483222,4.59929831,2051.9,2051.5,0.001]
[1771023483223,2.90398811,2051.8,2051.5,0.001]
[1771023483424,2.90398811,2051.7,2051.5,0.001]
[1771023484351,2.90586518,2051.6,2051.5,0.001]
[1771023485227,0.47692724,2051.7,2051.5,0.001]
[1771023485650,1.69535728,2051.9,2051.5,0.001]
[1771023485854,2.90597607,2051.8,2051.5,0.001]
[1771023486056,2.90597607,2051.7,2051.5,0.001]
[1771023486257,1.69535728,2051.9,2051.5,0.001]
[1771023486434,2.90559732,2051.8,2051.5,0.001]
[1771023486755,2.90559732,2051.7,2051.5,0.001]
[1771023486957,1.69535728,2051.9,2051.5,0.001]
[1771023487153,2.90558752,2051.8,2051.5,0.001]
[1771023487451,2.90558752,2051.7,2051.5,0.001]
[1771023487655,1.69531427,2051.9,2051.5,0.001]
[1771023487856,2.90525044,2051.8,2051.5,0.001]
[1771023488159,2.90525044,2051.7,2051.5,0.001]
[1771023488454,1.69531427,2051.9,2051.5,0.001]
[1771023488647,2.90511332,2051.8,2051.5,0.001]
[1771023488846,2.90511332,2051.7,2051.5,0.001]
[1771023489049,1.69531427,2051.9,2051.5,0.001]
[1771023489248,2.90490533,2051.8,2051.5,0.001]
[1771023489456,1.69531427,2051.9,2051.5,0.001]
[1771023489757,2.90525533,2051.8,2051.5,0.001]
[1771023489939,2.90525533,2051.7,2051.5,0.001]
[1771023490135,1.69531427,2051.9,2051.5,0.001]
[1771023490360,0.47692724,2051.7,2051.5,0.001]
[1771023490746,0.47692724,2051.8,2051.5,0.001]
[1771023491052,2.90558499,2051.7,2051.5,0.001]
[1771023491260,0.47692724,2051.8,2051.5,0.001]
[1771023491457,2.9057336,2051.7,2051.5,0.001]
[1771023491628,0.47692724,2051.8,2051.5,0.001]
[1771023491832,2.90585968,2051.7,2051.5,0.001]
[1771023492131,0.47692724,2051.8,2051.5,0.001]
[1771023492331,2.90576101,2051.7,2051.5,0.001]
[1771023492531,0.47692724,2051.8,2051.5,0.001]
[1771023492731,2.9061653,2051.7,2051.5,0.001]
[1771023492957,1.69538795,2051.8,2051.5,0.001]
[1771023493134,2.90606786,2051.7,2051.5,0.001]
[1771023493336,1.69538795,2051.8,2051.5,0.001]
[1771023493536,3.38341288,2051.7,2051.5,0.001]
[1771023493736,0.47692724,2051.7,2051.5,0.001]
[1771023496671,2.90756466,2051.6,2051.5,0.001]
[1771023497265,2.90775263,2051.7,2051.5,0.001]
[1771023497572,1.69538795,2051.8,2051.5,0.001]
[1771023497740,2.90810863,2051.7,2051.5,0.001]
[1771023497940,1.69538795,2051.8,2051.5,0.001]
[1771023498176,2.90830135,2051.7,2051.5,0.001]
[1771023498369,2.90830135,2051.6,2051.5,0.001]
[1771023498565,2.90830135,2051.7,2051.5,0.001]
[1771023498750,2.90830135,2051.6,2051.5,0.001]
[1771023499145,2.90830135,2051.7,2051.5,0.001]
[1771023499350,2.90830135,2051.6,2051.5,0.001]
[1771023499649,2.90830135,2051.7,2051.5,0.001]
[1771023499955,2.90830135,2051.6,2051.5,0.001]
[1771023500542,1.69538795,2051.8,2051.5,0.001]
[1771023500543,2.90830135,2051.7,2051.5,0.001]
[1771023500747,2.90830135,2051.6,2051.5,0.001]
[1771023501049,2.90830135,2051.7,2051.5,0.001]
[1771023501363,2.90830135,2051.6,2051.5,0.001]
[1771023501569,2.90830135,2051.7,2051.5,0.001]
[1771023501866,0.47692724,2051.8,2051.5,0.001]
[1771023501867,2.90830135,2051.6,2051.5,0.001]
[1771023506349,2.32885825,2051.9,2051.6,0.46162799]
[1771023506542,0.0011,2052.3,2051.7,0.46162799]
[1771023506744,0.0011,2052.3,2051.9,0.46162799]
[1771023507970,0.0011,2052.3,2052.0,0.46162799]
[1771023510050,0.0011,2052.5,2052.0,0.46162799]
[1771023510369,0.0022,2052.5,2052.0,0.46162799]
[1771023512046,0.0011,2052.5,2052.0,0.46162799]
[1771023512446,0.0011,2052.5,2052.1,0.49625107]
[1771023515160,0.0022,2052.5,2052.1,0.49625107]
[1771023516079,0.0011,2052.7,2052.5,0.49625107]
[1771023517090,0.0011,2052.9,2052.5,0.49625107]
[1771023517255,0.0022,2052.9,2052.7,0.49625107]
[1771023517883,0.0011,2053.0,2052.7,0.47064125]
[1771023518180,0.0011,2053.1,2052.7,0.47064125]
[1771023518484,0.0022,2053.1,2052.7,0.47064125]
[1771023519395,0.0022,2053.1,2052.8,0.47064125]
[1771023519684,0.0011,2053.4,2052.8,0.47064125]
[1771023524290,0.46413529,2053.4,2052.8,0.47064125]
[1771023529288,0.0011,2053.4,2052.9,0.47064125]
[1771023531373,0.0011,2053.4,2053.0,0.47064125]
[1771023532072,0.0011,2053.4,2053.2,0.47064125]
[1771023532269,0.0011,2053.5,2053.2,0.47064125]
[1771023532470,0.0011,2053.6,2053.2,0.47064125]
[1771023532806,0.0011,2053.7,2053.4,0.47064125]
[1771023532966,0.0011,2054.0,2053.6,0.47064125]
[1771023533869,0.0011,2054.1,2053.8,0.47064125]
[1771023534075,0.0011,2054.3,2054.0,0.47064125]
[1771023534792,0.0011,2054.5,2054.2,0.47064125]
[1771023535972,1.67944062,2055.3,2054.4,0.47064125]
[1771023536192,0.46303529,2055.2,2054.5,0.47064125]
[1771023536400,0.46303529,2055.2,2053.9,8.92560421]
[1771023536401,0.46303529,2055.1,2053.9,8.92560421]
[1771023536710,1.21640533,2055.3,2054.0,1.223]
[1771023536711,0.46303529,2054.9,2054.0,1.223]
[1771023537389,0.46303529,2054.7,2053.9,1.223]
[1771023538280,0.46303529,2054.6,2053.9,1.223]
[1771023540371,0.46303529,2054.8,2054.0,0.47064125]
[1771023540502,0.46303529,2054.9,2054.1,0.47064125]
[1771023541315,0.45952616,2055.2,2054.1,0.47064125]
[1771023541486,0.45952616,2055.2,2053.9,2.44019409]
[1771023541487,0.45952616,2055.2,2054.3,0.49576338]
[1771023541686,0.45952616,2055.2,2054.4,0.49576338]
[1771023543009,0.46062616,2055.1,2054.3,1.222]
[1771023543382,8.16905748,2055.1,2054.3,1.222]
[1771023543581,0.45952616,2055.0,2054.3,1.222]
[1771023543800,0.45952616,2055.0,2054.0,1.71676338]
[1771023544821,1.21660421,2054.9,2054.0,1.71676338]
[1771023545029,0.45952616,2054.8,2054.0,1.71676338]
[1771023546028,0.45952616,2054.8,2054.0,1.221]
[1771023547099,0.45952616,2054.7,2054.0,1.221]
[1771023548222,0.45952616,2054.7,2053.6,1.71576338]
[1771023548618,0.45952616,2054.7,2053.7,0.49576338]
[1771023549331,1.21678185,2054.6,2053.7,0.49576338]
[1771023549498,0.45952616,2054.5,2053.7,0.49576338]
[1771023549695,0.45952616,2054.5,2053.7,1.71307776]
[1771023550301,0.45952616,2054.5,2053.8,0.49576338]
[1771023551327,0.45952616,2054.5,2053.6,1.71576338]
[1771023551943,0.45952616,2054.4,2053.7,0.49576338]
[1771023562213,2.91578295,2054.3,2053.7,0.49576338]
[1771023562438,0.45952616,2054.4,2053.7,0.49576338]
[1771023562641,2.9157974,2054.3,2053.7,0.49576338]
[1771023562855,0.45952616,2054.4,2053.7,0.49576338]
[1771023563046,2.9157973,2054.3,2053.7,0.49576338]
[1771023563240,0.45952616,2054.4,2053.7,0.49576338]
[1771023563443,0.45952616,2054.2,2053.6,2.43737197]
[1771023564720,0.45952616,2054.2,2053.6,2.93313535]
[1771023565848,0.45952616,2054.5,2053.7,0.49576338]
[1771023566145,0.45952616,2054.7,2053.7,0.49576338]
[1771023566318,2.91742758,2054.6,2053.7,0.49576338]
[1771023566517,2.91742758,2054.5,2053.7,0.49576338]
[1771023566745,0.45952616,2054.7,2053.7,0.49576338]
[1771023566941,2.91741998,2054.6,2053.9,8.18074926]
[1771023567143,2.91741998,2054.5,2053.9,8.18074926]
[1771023567346,0.45952616,2054.6,2053.9,8.18074926]
[1771023567552,2.91747445,2054.5,2054.0,0.49576338]
[1771023567745,0.45952616,2054.6,2054.0,0.49576338]
[1771023567948,2.91746967,2054.5,2054.0,0.49576338]
[1771023568123,0.45952616,2054.6,2054.0,0.49576338]
[1771023568319,2.91744565,2054.5,2054.0,0.49576338]
[1771023568515,0.45952616,2054.6,2054.0,0.49576338]
[1771023568720,2.91744576,2054.5,2054.0,0.49576338]
[1771023568931,0.45952616,2054.6,2054.0,0.49576338]
[1771023569132,2.91744542,2054.5,2054.0,0.49576338]
[1771023569337,0.45952616,2054.6,2054.0,0.49576338]
[1771023569535,2.91742709,2054.5,2054.0,0.49576338]
[1771023569859,0.45952616,2054.6,2054.0,0.49576338]
[1771023570057,2.91742697,2054.5,2054.0,0.49576338]
[1771023570376,0.45952616,2054.6,2054.0,0.49576338]
[1771023570555,0.45952616,2054.4,2053.7,9.39802827]
[1771023570725,0.45952616,2054.4,2053.8,0.49576338]
[1771023572852,0.45952616,2054.4,2053.8,1.71976338]
[1771023573157,0.46747087,2054.2,2053.8,1.224]
[1771023575660,1.68449687,2054.2,2053.4,0.878]
[1771023575874,0.46747087,2054.0,2053.4,0.878]
[1771023576163,8.90201188,2054.2,2053.4,0.878]
[1771023576164,0.46747087,2053.8,2053.4,0.878]
[1771023576733,0.46747087,2054.2,2053.4,0.878]
[1771023577042,0.46747087,2054.0,2053.4,0.878]
[1771023577241,2.91939178,2053.9,2053.4,0.878]
[1771023577442,0.46747087,2054.0,2053.4,0.878]
[1771023577649,2.91827341,2053.9,2053.4,0.878]
[1771023577851,0.46747087,2054.0,2053.4,0.878]
[1771023578165,2.91827005,2053.9,2053.4,0.878]
[1771023578480,0.46747087,2054.0,2053.4,0.878]
[1771023578676,2.91730701,2053.9,2053.4,0.878]
[1771023578833,0.46747087,2054.0,2053.4,0.878]
[1771023580838,0.45834807,2054.7,2053.6,0.47566886]
[1771023581047,0.45834807,2054.7,2053.8,0.47566886]
[1771023581444,0.0011,2054.8,2054.2,0.47566886]
[1771023581763,0.0011,2054.8,2054.3,0.47566886]
[1771023582354,0.0011,2054.8,2054.4,0.47566886]
[1771023594268,0.0011,2054.8,2054.2,2.9166591]
[1771023594472,0.45944807,2054.8,2054.2,1.69966886]
[1771023594885,0.45944807,2054.8,2053.6,4.86949696]
[1771023594886,0.45944807,2054.8,2054.1,1.226]
[1771023595267,0.0011,2055.1,2054.3,0.47566886]
[1771023596562,0.0011,2055.1,2054.4,0.877]
[1771023596765,0.0011,2055.1,2054.5,0.47566886]
[1771023597090,0.0011,2055.1,2054.7,0.47566886]
[1771023597266,0.0011,2055.2,2054.9,0.47566886]
[1771023598053,0.0011,2055.2,2055.0,1.229]
[1771023599385,0.0011,2055.2,2055.0,2.92120709]
[1771023600278,0.0011,2055.2,2055.0,1.229]
[1771023600477,0.45944807,2055.3,2054.4,0.47566886]
[1771023600664,0.45944807,2055.3,2054.3,0.876]
[1771023601076,0.0011,2055.3,2054.4,0.45771549]
[1771023601263,0.49045407,2055.3,2054.1,0.56011549]
[1771023601467,0.49045407,2055.3,2054.2,1.65571549]
[1771023601665,0.49045407,2055.3,2054.3,0.45771549]
[1771023602191,0.49045407,2055.3,2054.2,1.198]
[1771023602684,0.49045407,2055.3,2054.3,0.722]
[1771023603252,0.48935407,2055.1,2054.3,0.722]
[1771023603887,0.48935407,2055.1,2054.0,1.67481881]
[1771023604056,0.48935407,2055.1,2054.1,1.231]
[1771023605196,0.48935407,2054.9,2054.0,0.001]
[1771023605382,0.48935407,2054.7,2054.0,0.001]
[1771023607495,0.48935407,2054.8,2054.0,0.001]
[1771023608005,0.48935407,2054.8,2054.0,0.45871549]
[1771023608178,0.48935407,2055.0,2054.0,0.45871549]
[1771023608380,2.90690754,2054.9,2054.0,0.45871549]
[1771023608677,2.90690754,2054.8,2054.0,0.45871549]
[1771023608874,0.48935407,2055.0,2054.0,0.45871549]
[1771023609099,2.90668568,2054.9,2054.0,0.45871549]
[1771023609296,0.48935407,2055.0,2054.0,0.45871549]
[1771023609497,2.90849685,2054.9,2054.2,0.45771549]
[1771023609709,0.48935407,2055.0,2054.2,0.45771549]
[1771023609903,2.90848791,2054.9,2054.2,0.45771549]
[1771023610100,2.91071608,2054.8,2054.2,0.45771549]
[1771023610306,0.48935407,2055.0,2054.2,0.45771549]
[1771023610509,2.91071658,2054.9,2054.2,0.45771549]
[1771023610676,0.48935407,2055.0,2054.2,0.45771549]
[1771023610879,2.91070239,2054.9,2054.2,0.45771549]
[1771023611074,0.48935407,2055.0,2054.2,0.45771549]
[1771023611275,2.91127985,2054.9,2054.2,0.45771549]
[1771023611471,0.48935407,2055.0,2054.2,0.45771549]
[1771023611704,0.48935407,2055.0,2054.0,1.67581437]
[1771023611705,3.40063225,2054.9,2054.0,1.67581437]
[1771023611909,3.40082904,2054.8,2054.0,0.001]
[1771023612076,0.48935407,2054.8,2054.0,0.001]
[1771023620010,0.48935407,2054.8,2054.0,0.45871549]
[1771023621423,0.48935407,2054.7,2054.0,0.001]
[1771023621626,0.48935407,2054.6,2054.0,0.001]
[1771023623308,0.48935407,2054.4,2054.0,0.001]
[1771023628118,1.70627347,2054.4,2054.0,0.001]
[1771023628317,0.48935407,2054.4,2054.0,0.001]
[1771023629828,0.48935407,2054.6,2054.0,0.001]
[1771023630031,2.91602255,2054.5,2054.0,0.45871549]
[1771023630336,8.43835407,2054.8,2054.0,0.45871549]
[1771023630637,2.9158076,2054.7,2054.0,0.45871549]
[1771023630808,2.9158076,2054.6,2054.0,0.45871549]
[1771023631007,6.86935407,2054.8,2054.0,0.45871549]
[1771023631212,2.91656074,2054.7,2054.0,0.45871549]
[1771023631412,2.91656074,2054.6,2054.0,0.45871549]
[1771023631714,6.38,2054.8,2054.0,0.45871549]
[1771023633515,7.59651253,2055.1,2054.2,0.49431942]
[1771023633908,8.0544109,2055.1,2054.2,0.49431942]
[1771023634126,0.45789837,2055.0,2054.2,0.49431942]
[1771023634337,0.45789837,2055.0,2054.3,0.49431942]
[1771023635039,8.05438603,2055.1,2054.3,0.49431942]
[1771023635641,0.45789837,2055.0,2054.3,0.49431942]
[1771023637331,0.45789837,2054.9,2054.3,0.49431942]
[1771023639142,0.45789837,2054.9,2054.1,0.47302148]
[1771023639319,0.45789837,2054.9,2054.0,0.001]
[1771023639640,0.49201669,2054.7,2054.0,0.001]
[1771023642030,0.49201669,2054.5,2054.0,0.001]
[1771023643947,0.49201669,2054.1,2053.8,0.001]
[1771023645950,1.21711021,2054.1,2053.8,0.001]
[1771023646145,0.49201669,2054.0,2053.8,0.001]
[1771023648232,0.49201669,2054.2,2053.8,0.001]
[1771023648428,2.91366448,2054.1,2053.8,0.001]
[1771023648631,0.49201669,2054.2,2053.8,0.001]
[1771023648834,2.91366278,2054.1,2053.8,0.001]
[1771023649137,0.49201669,2054.2,2053.8,0.001]
[1771023649347,2.91328278,2054.1,2053.8,0.001]
[1771023649546,2.78799969,2054.3,2053.8,0.001]
[1771023649736,2.91328218,2054.2,2053.8,0.001]
[1771023649948,2.78799969,2054.3,2053.8,0.001]
[1771023650132,2.91327729,2054.2,2053.8,0.001]
[1771023650333,1.572,2054.4,2053.8,0.47402148]
[1771023650533,2.91284696,2054.3,2053.8,0.47402148]
[1771023650740,1.572,2054.4,2053.8,0.47402148]
[1771023650741,2.91284696,2054.2,2053.8,0.47402148]
[1771023651056,1.572,2054.4,2053.8,0.47402148]
[1771023651258,2.91276718,2054.3,2053.8,0.47402148]
[1771023651457,2.91276718,2054.2,2053.8,0.47402148]
[1771023651653,1.572,2054.4,2053.8,0.47402148]
[1771023651860,2.91276236,2054.3,2053.8,0.47402148]
[1771023652033,1.70886049,2054.5,2053.8,0.47402148]
[1771023652232,2.91260071,2054.4,2053.8,0.47402148]
[1771023652433,2.91260071,2054.3,2053.8,0.47402148]
[1771023652653,1.2168438,2054.5,2053.8,0.47402148]
[1771023652853,2.91259912,2054.4,2053.8,0.47402148]
[1771023653053,2.91259912,2054.3,2053.8,0.47402148]
[1771023653259,0.49201669,2054.5,2053.8,0.47402148]
[1771023653434,2.91246851,2054.4,2053.8,0.47402148]
[1771023653635,0.49201669,2054.5,2053.8,0.47402148]
[1771023653936,2.91226814,2054.4,2053.8,0.47402148]
[1771023654136,0.49201669,2054.5,2053.8,0.47402148]
[1771023654463,2.91228648,2054.4,2053.8,0.47402148]
[1771023654645,0.49201669,2054.5,2053.8,0.47402148]
[1771023654846,2.91228121,2054.4,2053.8,0.47402148]
[1771023655037,0.49201669,2054.5,2053.8,0.47402148]
[1771023655237,2.91223507,2054.4,2053.8,0.47402148]
[1771023655531,0.49201669,2054.5,2053.8,0.47402148]
[1771023655751,2.91223451,2054.4,2053.8,0.47402148]
[1771023655954,0.49201669,2054.5,2053.8,0.47402148]
[1771023656164,2.91223227,2054.4,2053.8,0.47402148]
[1771023656461,0.49201669,2054.5,2053.8,0.47402148]
[1771023656663,2.91214656,2054.4,2053.8,1.21823975]
[1771023656835,0.0011,2054.6,2053.9,0.47302148]
[1771023657036,2.91205711,2054.5,2053.9,0.47302148]
[1771023657232,0.0011,2054.6,2053.9,0.47302148]
[1771023657458,2.91206257,2054.5,2053.9,0.47302148]
[1771023657657,0.49311669,2054.6,2053.9,0.47302148]
[1771023657863,2.91206306,2054.5,2053.9,0.47302148]
[1771023658061,0.0011,2054.6,2053.9,0.47302148]
[1771023658840,0.0011,2054.6,2054.0,0.47302148]
[1771023660249,0.49311669,2054.6,2054.0,0.47302148]
[1771023660439,0.49311669,2054.6,2053.9,0.47302148]
[1771023660640,2.91191579,2054.5,2053.9,0.47302148]
[1771023660849,0.49311669,2054.6,2053.9,0.47302148]
[1771023661049,2.91190641,2054.5,2053.9,0.47302148]
[1771023661244,0.49311669,2054.6,2053.9,0.47302148]
[1771023661564,2.91204443,2054.5,2053.9,0.47302148]
[1771023661766,0.49311669,2054.6,2053.9,0.47302148]
[1771023662070,2.91204341,2054.5,2053.9,0.47302148]
[1771023662263,1.21789275,2054.6,2053.9,0.47302148]
[1771023662438,4.62241136,2054.5,2053.9,0.47302148]
[1771023662767,2.91244106,2054.4,2053.8,0.001]
[1771023662949,0.4932825,2054.4,2053.8,0.001]
[1771023666845,0.4932825,2054.4,2053.8,0.49225963]
[1771023667047,0.4943825,2054.6,2053.8,0.49225963]
[1771023667251,2.91539333,2054.5,2053.8,0.49225963]
[1771023667463,2.91539333,2054.4,2053.8,0.49225963]
[1771023667769,0.4943825,2054.6,2053.8,0.49225963]
[1771023667988,2.91553959,2054.5,2053.8,0.49225963]
[1771023668167,2.91553959,2054.4,2053.8,0.49225963]
[1771023668467,2.91553959,2054.3,2053.8,0.49225963]
[1771023668668,1.7111976,2054.6,2053.8,0.49225963]
[1771023668865,2.91658054,2054.5,2053.8,0.49225963]
[1771023669171,2.91658054,2054.4,2053.8,0.49225963]
[1771023669463,2.91658054,2054.3,2053.8,0.49225963]
[1771023669669,1.71116838,2054.6,2053.8,0.49225963]
[1771023669964,2.91784432,2054.5,2053.8,0.49225963]
[1771023670170,2.91784432,2054.4,2053.8,0.49225963]
[1771023670372,1.71116838,2054.6,2053.8,0.49225963]
[1771023670373,2.91784432,2054.3,2053.8,0.49225963]
[1771023670548,0.4932825,2054.5,2053.8,0.49225963]
[1771023670756,2.91855408,2054.4,2053.8,0.49225963]
[1771023670950,2.91855408,2054.3,2053.8,0.49225963]
[1771023671269,1.21788588,2054.6,2053.8,0.49225963]
[1771023671468,2.9185039,2054.5,2053.8,0.49225963]
[1771023671646,2.9185039,2054.4,2053.8,0.49225963]
[1771023671849,2.9185039,2054.3,2053.8,0.49225963]
[1771023672045,1.21788588,2054.6,2053.8,0.49225963]
[1771023672251,2.91836488,2054.5,2053.8,0.49225963]
[1771023672450,2.91836488,2054.4,2053.8,0.49225963]
[1771023672676,2.91836488,2054.3,2053.8,0.49225963]
[1771023672875,0.0011,2054.6,2053.8,0.49225963]
[1771023673076,2.9183974,2054.5,2053.8,0.49225963]
[1771023673371,2.9183974,2054.4,2053.8,1.21824475]
[1771023673553,1.98761307,2054.3,2053.9,0.49125963]
[1771023673754,0.0011,2054.6,2053.9,0.49125963]
[1771023677272,0.4943825,2054.6,2053.9,0.49125963]
[1771023691986,0.0011,2054.6,2053.9,0.49125963]
[1771023693990,0.4529981,2054.6,2053.9,0.49125963]
[1771023694494,0.0011,2054.6,2053.9,0.49125963]
[1771023697593,0.4529981,2054.6,2053.9,0.49125963]
[1771023698995,0.4529981,2054.6,2053.9,1.70844433]
[1771023699196,0.4529981,2054.6,2053.9,0.49125963]
[1771023700300,0.4529981,2054.6,2054.0,0.49138233]
[1771023700591,0.0011,2054.6,2054.0,0.49138233]
[1771023703188,0.0011,2054.6,2054.0,1.69238233]
[1771023703501,0.0011,2054.6,2054.1,0.49138233]
[1771023704082,2.92167542,2054.5,2054.1,0.49138233]
[1771023704406,0.0011,2054.6,2054.1,0.49138233]
[1771023704608,2.92131784,2054.5,2054.1,0.49138233]
[1771023704784,0.0011,2054.6,2054.1,0.49138233]
[1771023704986,2.92129685,2054.5,2054.1,0.49138233]
[1771023705207,0.0011,2054.6,2054.1,0.49138233]
[1771023708808,0.0011,2054.6,2054.2,0.49138233]
[1771023710018,0.0011,2054.7,2054.2,0.49138233]
[1771023711728,0.0011,2054.7,2054.2,1.21701783]
[1771023712021,0.0011,2054.7,2054.3,0.49138233]
[1771023712217,0.0011,2054.9,2054.3,0.49138233]
[1771023716726,0.0011,2054.9,2054.4,1.211]
[1771023717231,0.46246703,2054.9,2054.4,1.211]
[1771023717725,0.46136703,2054.8,2054.4,1.211]
[1771023719807,0.46136703,2054.8,2054.0,0.001]
[1771023720001,0.46136703,2054.7,2054.0,0.001]
[1771023720197,0.46136703,2054.7,2054.0,1.211]
[1771023721332,0.46136703,2054.7,2054.0,0.001]
[1771023721535,0.45628424,2054.5,2053.8,0.001]
[1771023721717,0.45628424,2054.3,2053.8,0.001]
[1771023721893,0.45628424,2054.1,2053.8,0.001]
[1771023722093,0.45628424,2054.1,2053.6,0.001]
[1771023722317,0.45628424,2053.9,2053.4,0.001]
[1771023724000,0.45628424,2053.7,2053.4,0.001]
[1771023726214,0.45628424,2053.5,2053.4,0.001]
[1771023727195,1.21737436,2053.6,2053.4,0.001]
[1771023727401,1.21735685,2053.7,2053.4,0.001]
[1771023727612,0.45628424,2053.6,2053.4,0.001]
[1771023730819,2.78824335,2053.9,2053.4,0.001]
[1771023731019,3.24452759,2053.9,2053.4,0.001]
[1771023731626,0.45628424,2053.8,2053.4,0.001]
[1771023733038,0.45628424,2053.7,2053.4,0.001]
[1771023733201,0.45628424,2053.7,2053.2,0.001]
[1771023733405,8.90354887,2053.8,2053.0,0.001]
[1771023733406,0.45628424,2053.5,2053.0,0.001]
[1771023735208,0.45628424,2053.3,2053.0,0.001]
[1771023738136,1.67383969,2053.3,2053.0,0.001]
[1771023738613,0.45628424,2053.3,2053.0,0.001]
[1771023739008,0.45628424,2053.9,2053.0,0.47226911]
[1771023739333,1.67455851,2054.0,2053.2,0.47126911]
[1771023739923,1.67455851,2054.0,2053.4,0.47126911]
[1771023739924,0.0011,2054.0,2053.4,0.47126911]
[1771023745021,0.0011,2054.0,2053.5,0.47126911]
[1771023750755,0.0011,2054.0,2053.6,0.49561109]
[1771023751632,0.0011,2054.0,2053.7,0.49561109]
[1771023752833,0.0011,2054.0,2053.7,1.70861109]
[1771023753459,0.0011,2054.2,2053.8,0.49561109]
[1771023754954,0.49115732,2054.1,2053.2,1.37261109]
[1771023755154,0.49115732,2054.0,2053.4,1.216]
[1771023760078,0.48400193,2053.9,2053.2,1.35900842]
[1771023766443,0.48400193,2053.9,2053.2,0.877]
[1771023766648,0.0011,2054.2,2053.4,0.48200842]
[1771023766859,0.0011,2054.2,2053.6,0.48200842]
[1771023772974,0.0011,2054.2,2053.7,0.48200842]
[1771023774662,0.0011,2054.2,2053.8,0.48200842]
[1771023779674,0.0011,2054.6,2054.1,0.48200842]
[1771023781772,0.0011,2054.6,2054.2,0.48482106]
[1771023781983,0.0011,2054.6,2054.4,0.48482106]
[1771023784268,0.0011,2054.6,2054.3,1.224]
[1771023784584,0.0011,2054.6,2054.3,2.92574687]
[1771023784782,0.0011,2054.6,2054.4,0.48482106]
[1771023785099,0.0011,2054.7,2054.4,0.48482106]
[1771023787283,0.0011,2054.9,2054.4,0.48482106]
[1771023790299,0.49074718,2054.9,2054.3,1.224]
[1771023790901,0.49074718,2054.9,2054.0,1.70195568]
[1771023791101,0.49074718,2054.9,2054.1,1.227]
[1771023791994,0.49074718,2054.9,2054.1,1.71182106]
[1771023794402,0.49074718,2054.9,2054.1,2.92889169]
[1771023794599,0.49074718,2054.9,2054.1,2.44407063]
[1771023794804,0.49074718,2054.9,2054.2,0.48482106]
[1771023795303,0.0011,2054.9,2054.2,0.48482106]
[1771023796624,0.0011,2054.9,2054.2,1.21700696]
[1771023796899,0.0011,2054.9,2054.3,0.48482106]
[1771023797090,0.0011,2054.9,2054.3,0.20460914]
[1771023798888,0.49074718,2054.9,2054.3,0.20460914]
[1771023799107,0.49074718,2054.9,2054.1,2.92885256]
[1771023801607,0.49074718,2054.9,2054.1,2.4440315]
[1771023801815,0.49074718,2054.9,2054.2,0.48482106]
[1771023802990,0.49074718,2054.9,2054.2,1.70180964]
[1771023804310,0.49074718,2054.9,2054.3,0.48482106]
[1771023808609,0.0011,2054.9,2054.4,0.48482106]
[1771023810297,0.0011,2054.9,2054.4,1.70171763]
[1771023813107,0.0011,2054.9,2054.5,1.72831004]
[1771023813314,0.0011,2054.9,2054.6,0.49731004]
[1771023814837,0.0011,2054.9,2054.6,1.7140687]
[1771023817139,0.0011,2055.1,2054.6,1.7140687]
[1771023822643,0.0011,2055.1,2054.7,0.48376949]
[1771023822939,0.0011,2055.1,2054.8,1.244]
[1771023823149,0.0011,2055.1,2054.8,1.72776949]
[1771023823532,0.0011,2055.1,2054.9,0.48376949]
[1771023824214,0.0011,2055.1,2054.8,2.46065261]
[1771023824545,0.0011,2055.2,2054.8,2.46065261]
[1771023824719,0.0011,2055.2,2054.8,2.9444221]
[1771023826628,0.0011,2055.2,2054.8,1.72776949]
[1771023826824,0.0011,2055.2,2054.8,2.94442899]
[1771023828020,0.0011,2055.2,2054.8,1.244]
[1771023828723,0.0011,2055.2,2054.8,2.46066324]
[1771023829325,0.0011,2055.2,2054.8,2.94443273]
[1771023829549,0.0011,2055.3,2054.9,0.48376949]
[1771023831050,0.0011,2055.3,2054.8,2.46066324]
[1771023834336,0.45881584,2055.3,2054.8,2.46066324]
[1771023835455,0.45881584,2055.3,2054.8,1.244]
[1771023836434,0.45771584,2055.2,2054.6,2.24]
[1771023836623,0.45771584,2055.2,2054.8,1.264]
[1771023837943,8.14013417,2055.2,2054.6,2.24]
[1771023838154,0.45771584,2055.0,2054.6,2.24]
[1771023838349,0.45771584,2054.9,2054.5,0.001]
[1771023840131,0.45771584,2054.8,2054.5,0.001]
[1771023843158,0.45632117,2054.7,2054.5,0.001]
[1771023846757,0.45632117,2054.6,2054.5,0.001]
[1771023848333,0.45632117,2054.6,2054.3,0.001]
[1771023852470,0.45632117,2054.5,2054.3,0.001]
[1771023852762,0.45632117,2054.5,2054.1,0.001]
[1771023852942,0.45632117,2054.3,2053.8,0.877]
[1771023853142,0.45632117,2054.3,2053.8,0.001]
[1771023853349,0.45632117,2054.1,2053.8,0.001]
[1771023855241,0.45632117,2054.0,2053.8,0.001]
[1771023855745,2.02232117,2054.4,2053.8,0.47841353]
[1771023856140,0.45632117,2054.6,2053.8,0.47841353]
[1771023856437,7.68241833,2054.9,2053.8,0.47841353]
[1771023856438,3.23907864,2054.7,2053.8,0.47841353]
[1771023856643,2.9057274,2054.6,2053.8,0.47841353]
[1771023856848,0.45632117,2054.6,2053.8,0.47841353]
[1771023857348,3.23904966,2054.7,2053.9,0.47741353]
[1771023857554,3.36180958,2054.6,2053.9,0.47741353]
[1771023857865,0.45632117,2054.6,2053.9,0.47741353]
[1771023859142,0.45632117,2055.2,2054.1,0.47741353]
[1771023859467,0.45632117,2055.1,2054.4,0.47741353]
[1771023860369,0.45632117,2055.1,2054.5,0.47741353]
[1771023861367,0.45742117,2055.3,2054.5,0.47741353]
[1771023861571,0.45742117,2055.3,2054.6,0.47741353]